[Event "Titled Tuesday Blitz June 28 Early 2022"]
[White "Marjanovic, Annamaria"]
[Black "Bharath Subramaniyam H"]
[WhiteFideId "750930"]
[BlackFideId "46634827"]
[WhiteElo "2156"]
[BlackElo "2242"]
[Result "1-0"]
[Round "07"]
[TimeControl "180+1"]
[Date "2022.06.28"]
[WhiteClock "0:00:09"]
[BlackClock "0:00:07"]

1. b3 {[%clk 0:03:00]}  e5 {[%clk 0:02:58]} 2. Bb2 {[%clk 0:03:00]}  Nc6 {[%clk 0:02:59]} 3. e3 {[%clk 0:02:59]}  Nf6 {[%clk 0:02:59]} 4. c4 {[%clk 0:02:59]}  d5 {[%clk 0:02:57]} 5. cxd5 {[%clk 0:02:58]}  Nxd5 {[%clk 0:02:58]} 6. Nf3 {[%clk 0:02:55]}  e4 {[%clk 0:02:54]} 7. Nd4 {[%clk 0:02:53]}  Nxd4 {[%clk 0:02:52]} 8. Bxd4 {[%clk 0:02:53]}  c5 {[%clk 0:02:48]} 9. Bb2 {[%clk 0:02:51]}  Nb4 {[%clk 0:02:38]} 10. Nc3 {[%clk 0:02:45]}  Nd3+ {[%clk 0:02:33]} 11. Bxd3 {[%clk 0:02:44]}  Qxd3 {[%clk 0:02:33]} 12. Qb1 {[%clk 0:02:36]}  Bf5 {[%clk 0:02:33]} 13. Qxd3 {[%clk 0:02:33]}  exd3 {[%clk 0:02:34]} 14. f3 {[%clk 0:02:30]}  O-O-O {[%clk 0:02:33]} 15. Rc1 {[%clk 0:02:27]}  b6 {[%clk 0:02:31]} 16. Kf2 {[%clk 0:02:26]}  Kb7 {[%clk 0:02:29]} 17. e4 {[%clk 0:02:18]}  Be6 {[%clk 0:02:29]} 18. Nd1 {[%clk 0:02:18]}  f6 {[%clk 0:02:17]} 19. Ne3 {[%clk 0:02:17]}  Bd6 {[%clk 0:02:15]} 20. g3 {[%clk 0:02:10]}  h5 {[%clk 0:02:13]} 21. f4 {[%clk 0:01:53]}  h4 {[%clk 0:02:05]} 22. Kf3 {[%clk 0:01:45]}  b5 {[%clk 0:01:55]} 23. g4 {[%clk 0:01:31]}  Kb6 {[%clk 0:01:50]} 24. Nf5 {[%clk 0:01:18]}  Bf8 {[%clk 0:01:27]} 25. Rhe1 {[%clk 0:01:06]}  a5 {[%clk 0:01:19]} 26. e5 {[%clk 0:01:03]}  g6 {[%clk 0:01:16]} 27. Ne3 {[%clk 0:00:53]}  f5 {[%clk 0:01:16]} 28. gxf5 {[%clk 0:00:47]}  gxf5 {[%clk 0:01:17]} 29. Rg1 {[%clk 0:00:47]}  Rh6 {[%clk 0:01:16]} 30. Rg5 {[%clk 0:00:45]}  h3 {[%clk 0:01:05]} 31. Nxf5 {[%clk 0:00:41]}  Bd5+ {[%clk 0:01:05]} 32. Ke3 {[%clk 0:00:40]}  Re6 {[%clk 0:01:05]} 33. Rcg1 {[%clk 0:00:33]}  c4 {[%clk 0:01:04]} 34. Bd4+ {[%clk 0:00:32]}  Bc5 {[%clk 0:01:02]} 35. bxc4 {[%clk 0:00:29]}  Bxc4 {[%clk 0:00:56]} 36. a3 {[%clk 0:00:27]}  b4 {[%clk 0:00:54]} 37. axb4 {[%clk 0:00:26]}  axb4 {[%clk 0:00:55]} 38. Rc1 {[%clk 0:00:25]}  Kb5 {[%clk 0:00:49]} 39. Bxc5 {[%clk 0:00:20]}  Kxc5 {[%clk 0:00:50]} 40. Rg7 {[%clk 0:00:20]}  Rc6 {[%clk 0:00:16]} 41. Nd6 {[%clk 0:00:20]}  Kd5 {[%clk 0:00:15]} 42. Ne4 {[%clk 0:00:19]}  b3 {[%clk 0:00:13]} 43. Nc3+ {[%clk 0:00:18]}  Kc5 {[%clk 0:00:14]} 44. Ra1 {[%clk 0:00:17]}  Rb8 {[%clk 0:00:12]} 45. Rb1 {[%clk 0:00:16]}  Kb4 {[%clk 0:00:11]} 46. Ra7 {[%clk 0:00:14]}  Rg6 {[%clk 0:00:10]} 47. Ra4+ {[%clk 0:00:14]}  Kc5 {[%clk 0:00:11]} 48. Ne4+ {[%clk 0:00:14]}  Kd5 {[%clk 0:00:11]} 49. Nc3+ {[%clk 0:00:13]}  Kc5 {[%clk 0:00:11]} 50. Ne4+ {[%clk 0:00:13]}  Kd5 {[%clk 0:00:09]} 51. Nd6 {[%clk 0:00:13]}  Rxd6 {[%clk 0:00:03]} 52. exd6 {[%clk 0:00:12]}  Re8+ {[%clk 0:00:03]} 53. Kf3 {[%clk 0:00:12]}  Rd8 {[%clk 0:00:04]} 54. Rc1 {[%clk 0:00:10]}  Bb5 {[%clk 0:00:04]} 55. Rb4 {[%clk 0:00:10]}  Rb8 {[%clk 0:00:03]} 56. Rxb3 {[%clk 0:00:10]}  Kxd6 {[%clk 0:00:04]} 57. Rcb1 {[%clk 0:00:10]}  Bc6+ {[%clk 0:00:04]} 58. Ke3 {[%clk 0:00:08]}  Rg8 {[%clk 0:00:04]} 59. Rxd3+ {[%clk 0:00:07]}  Kc7 {[%clk 0:00:04]} 60. Rc1 {[%clk 0:00:07]}  Kb6 {[%clk 0:00:04]} 61. Rb3+ {[%clk 0:00:07]}  Kc7 {[%clk 0:00:03]} 62. Rbc3 {[%clk 0:00:08]}  Re8+ {[%clk 0:00:03]} 63. Kf2 {[%clk 0:00:07]}  Re6 {[%clk 0:00:04]} 64. Rxc6+ {[%clk 0:00:07]}  Rxc6 {[%clk 0:00:05]} 65. Rxc6+ {[%clk 0:00:07]}  Kxc6 {[%clk 0:00:06]} 66. Kg3 {[%clk 0:00:07]}  Kd5 {[%clk 0:00:06]} 67. Kxh3 {[%clk 0:00:08]}  Ke4 {[%clk 0:00:07]} 68. Kg4 {[%clk 0:00:09]} 1-0


[Site "https://www.chess.com"]

[Event "Titled Tuesday Blitz June 28 Early 2022"]
[White "Martinez Alcantara, Jose Eduardo"]
[Black "Seo, Jung Min"]
[WhiteFideId "3805662"]
[BlackFideId "1734687"]
[WhiteElo "2703"]
[BlackElo "2414"]
[Result "0-1"]
[Round "07"]
[TimeControl "180+1"]
[Date "2022.06.28"]
[WhiteClock "0:00:42"]
[BlackClock "0:00:14"]

1. e4 {[%clk 0:03:00]}  c5 {[%clk 0:03:00]} 2. Nf3 {[%clk 0:03:00]}  d6 {[%clk 0:03:00]} 3. Bb5+ {[%clk 0:03:01]}  Nd7 {[%clk 0:03:00]} 4. O-O {[%clk 0:03:01]}  a6 {[%clk 0:03:00]} 5. Bxd7+ {[%clk 0:03:02]}  Qxd7 {[%clk 0:03:00]} 6. c3 {[%clk 0:03:03]}  Nf6 {[%clk 0:02:59]} 7. Re1 {[%clk 0:03:03]}  g6 {[%clk 0:02:58]} 8. d4 {[%clk 0:03:03]}  cxd4 {[%clk 0:02:58]} 9. cxd4 {[%clk 0:03:04]}  Bg7 {[%clk 0:02:59]} 10. Nc3 {[%clk 0:03:02]}  O-O {[%clk 0:02:59]} 11. a4 {[%clk 0:03:02]}  Qd8 {[%clk 0:02:58]} 12. h3 {[%clk 0:02:58]}  Bd7 {[%clk 0:02:46]} 13. Bg5 {[%clk 0:02:50]}  Bc6 {[%clk 0:02:45]} 14. Qd2 {[%clk 0:02:25]}  d5 {[%clk 0:02:43]} 15. Bxf6 {[%clk 0:02:15]}  Bxf6 {[%clk 0:02:37]} 16. e5 {[%clk 0:02:15]}  Bg7 {[%clk 0:02:37]} 17. Nh2 {[%clk 0:02:02]}  Qb6 {[%clk 0:02:31]} 18. Ng4 {[%clk 0:01:58]}  Rfd8 {[%clk 0:02:30]} 19. f4 {[%clk 0:01:56]}  e6 {[%clk 0:02:16]} 20. Kh2 {[%clk 0:01:54]}  Rac8 {[%clk 0:02:16]} 21. Nf6+ {[%clk 0:01:47]}  Bxf6 {[%clk 0:02:12]} 22. exf6 {[%clk 0:01:47]}  Be8 {[%clk 0:02:13]} 23. Qf2 {[%clk 0:01:33]}  Rc4 {[%clk 0:02:08]} 24. Rad1 {[%clk 0:01:33]}  Bxa4 {[%clk 0:02:06]} 25. Rd3 {[%clk 0:01:10]}  Bb5 {[%clk 0:02:01]} 26. Qh4 {[%clk 0:01:06]}  Qd6 {[%clk 0:01:59]} 27. Re5 {[%clk 0:01:01]}  Rb4 {[%clk 0:01:40]} 28. Rd2 {[%clk 0:01:01]}  a5 {[%clk 0:01:33]} 29. Qg3 {[%clk 0:01:00]}  Qb6 {[%clk 0:01:29]} 30. f5 {[%clk 0:00:55]}  exf5 {[%clk 0:01:23]} 31. Nxd5 {[%clk 0:00:55]}  Rxd5 {[%clk 0:01:04]} 32. Rxd5 {[%clk 0:00:56]}  Qxf6 {[%clk 0:01:04]} 33. Re5 {[%clk 0:00:57]}  f4 {[%clk 0:00:57]} 34. Qg5 {[%clk 0:00:45]}  Qxg5 {[%clk 0:00:51]} 35. Rxg5 {[%clk 0:00:46]}  f5 {[%clk 0:00:51]} 36. g4 {[%clk 0:00:37]}  Bd7 {[%clk 0:00:41]} 37. gxf5 {[%clk 0:00:35]}  Bxf5 {[%clk 0:00:41]} 38. Rg1 {[%clk 0:00:31]}  Rb3 {[%clk 0:00:36]} 39. Rf1 {[%clk 0:00:26]}  Rxh3+ {[%clk 0:00:34]} 40. Kg1 {[%clk 0:00:26]}  g5 {[%clk 0:00:32]} 41. Kf2 {[%clk 0:00:27]}  Rh2+ {[%clk 0:00:30]} 42. Ke1 {[%clk 0:00:28]}  Rxd2 {[%clk 0:00:31]} 43. Kxd2 {[%clk 0:00:28]}  Kg7 {[%clk 0:00:30]} 44. d5 {[%clk 0:00:29]}  Kf6 {[%clk 0:00:30]} 45. Kc3 {[%clk 0:00:30]}  Ke5 {[%clk 0:00:27]} 46. Kc4 {[%clk 0:00:30]}  g4 {[%clk 0:00:28]} 47. Kc5 {[%clk 0:00:30]}  f3 {[%clk 0:00:27]} 48. Re1+ {[%clk 0:00:30]}  Kf4 {[%clk 0:00:27]} 49. d6 {[%clk 0:00:31]}  f2 {[%clk 0:00:27]} 50. Rf1 {[%clk 0:00:31]}  g3 {[%clk 0:00:27]} 51. Kb6 {[%clk 0:00:31]}  h5 {[%clk 0:00:26]} 52. Kc7 {[%clk 0:00:31]}  h4 {[%clk 0:00:26]} 53. Rc1 {[%clk 0:00:32]}  g2 {[%clk 0:00:25]} 54. Rc4+ {[%clk 0:00:32]}  Kg5 {[%clk 0:00:24]} 55. Rc5 {[%clk 0:00:32]}  f1=Q {[%clk 0:00:23]} 56. d7 {[%clk 0:00:33]}  Qd3 {[%clk 0:00:20]} 57. d8=Q+ {[%clk 0:00:30]}  Qxd8+ {[%clk 0:00:20]} 58. Kxd8 {[%clk 0:00:31]}  g1=Q {[%clk 0:00:20]} 59. Rc7 {[%clk 0:00:32]}  Qd4+ {[%clk 0:00:20]} 60. Ke8 {[%clk 0:00:27]}  Qh8+ {[%clk 0:00:19]} 61. Ke7 {[%clk 0:00:27]}  Qg7+ {[%clk 0:00:20]} 62. Kd6 {[%clk 0:00:28]}  Qxc7+ {[%clk 0:00:19]} 63. Kxc7 {[%clk 0:00:29]}  b5 {[%clk 0:00:20]} 64. b4 {[%clk 0:00:30]}  axb4 {[%clk 0:00:20]} 65. Kd6 {[%clk 0:00:30]}  h3 {[%clk 0:00:20]} 66. Kd5 {[%clk 0:00:31]}  h2 {[%clk 0:00:20]} 67. Kd4 {[%clk 0:00:32]}  h1=Q {[%clk 0:00:19]} 68. Kc5 {[%clk 0:00:32]}  b3 {[%clk 0:00:19]} 69. Kb6 {[%clk 0:00:33]}  b2 {[%clk 0:00:19]} 70. Ka5 {[%clk 0:00:33]}  b1=B {[%clk 0:00:17]} 71. Kb6 {[%clk 0:00:34]}  Qd5 {[%clk 0:00:16]} 72. Ka5 {[%clk 0:00:35]}  b4+ {[%clk 0:00:16]} 73. Kb6 {[%clk 0:00:36]}  Bd7 {[%clk 0:00:15]} 74. Kc7 {[%clk 0:00:37]}  Qc6+ {[%clk 0:00:15]} 75. Kd8 {[%clk 0:00:38]}  Qc8+ {[%clk 0:00:16]} 76. Ke7 {[%clk 0:00:38]}  b3 {[%clk 0:00:16]} 77. Kd6 {[%clk 0:00:39]}  Bg6 {[%clk 0:00:16]} 78. Ke5 {[%clk 0:00:40]}  b2 {[%clk 0:00:15]} 79. Kd5 {[%clk 0:00:40]}  b1=Q {[%clk 0:00:14]} 80. Kd4 {[%clk 0:00:41]}  Qd3+ {[%clk 0:00:14]} 81. Ke5 {[%clk 0:00:42]}  Qe8# {[%clk 0:00:14]} 0-1


[Site "https://www.chess.com"]

[Event "Titled Tuesday Blitz June 28 Early 2022"]
[White "Melikhov, Evgeny V."]
[Black "Thiel, Thomas"]
[WhiteFideId "4122046"]
[BlackFideId "4615964"]
[WhiteElo "1904"]
[BlackElo "2249"]
[Result "1-0"]
[Round "07"]
[TimeControl "180+1"]
[Date "2022.06.28"]
[WhiteClock "0:01:49"]
[BlackClock "0:00:50"]

1. d4 {[%clk 0:03:00]}  Nf6 {[%clk 0:02:56]} 2. c4 {[%clk 0:03:00]}  g6 {[%clk 0:02:19]} 3. Nc3 {[%clk 0:03:00]}  d5 {[%clk 0:02:17]} 4. cxd5 {[%clk 0:02:59]}  Nxd5 {[%clk 0:02:17]} 5. e4 {[%clk 0:02:59]}  Nxc3 {[%clk 0:02:15]} 6. bxc3 {[%clk 0:03:00]}  c5 {[%clk 0:02:14]} 7. Bc4 {[%clk 0:03:00]}  Bg7 {[%clk 0:02:12]} 8. Ne2 {[%clk 0:03:00]}  O-O {[%clk 0:02:10]} 9. Be3 {[%clk 0:02:59]}  Nc6 {[%clk 0:02:10]} 10. h4 {[%clk 0:02:59]}  cxd4 {[%clk 0:02:06]} 11. cxd4 {[%clk 0:02:59]}  Qa5+ {[%clk 0:02:05]} 12. Kf1 {[%clk 0:02:59]}  Qa3 {[%clk 0:02:05]} 13. Qc1 {[%clk 0:02:56]}  Qxc1+ {[%clk 0:02:02]} 14. Rxc1 {[%clk 0:02:55]}  Bd7 {[%clk 0:01:59]} 15. h5 {[%clk 0:02:54]}  Rfc8 {[%clk 0:01:58]} 16. h6 {[%clk 0:02:48]}  Bh8 {[%clk 0:01:55]} 17. e5 {[%clk 0:02:33]}  e6 {[%clk 0:01:53]} 18. f4 {[%clk 0:02:33]}  Nb4 {[%clk 0:01:46]} 19. Kf2 {[%clk 0:02:25]}  Bc6 {[%clk 0:01:46]} 20. a3 {[%clk 0:02:20]}  Nd5 {[%clk 0:01:45]} 21. Bxd5 {[%clk 0:02:20]}  Bxd5 {[%clk 0:01:44]} 22. Rxc8+ {[%clk 0:02:20]}  Rxc8 {[%clk 0:01:42]} 23. Rc1 {[%clk 0:02:19]}  Rxc1 {[%clk 0:01:38]} 24. Nxc1 {[%clk 0:02:18]}  Bc4 {[%clk 0:01:31]} 25. g4 {[%clk 0:02:17]}  a6 {[%clk 0:01:29]} 26. g5 {[%clk 0:02:16]}  Kf8 {[%clk 0:01:25]} 27. Ke1 {[%clk 0:02:14]}  Ke7 {[%clk 0:01:23]} 28. Kd2 {[%clk 0:02:14]}  Kd7 {[%clk 0:01:23]} 29. Kc3 {[%clk 0:02:14]}  b5 {[%clk 0:01:21]} 30. a4 {[%clk 0:02:13]}  Kc6 {[%clk 0:01:20]} 31. axb5+ {[%clk 0:02:11]}  axb5 {[%clk 0:01:20]} 32. Nb3 {[%clk 0:02:01]}  Bxb3 {[%clk 0:01:04]} 33. Kxb3 {[%clk 0:02:00]}  Kd5 {[%clk 0:01:04]} 34. Kc3 {[%clk 0:01:55]}  Ke4 {[%clk 0:01:04]} 35. Bc1 {[%clk 0:01:51]}  b4+ {[%clk 0:01:02]} 36. Kxb4 {[%clk 0:01:50]}  Kxd4 {[%clk 0:01:00]} 37. Kb5 {[%clk 0:01:50]}  Ke4 {[%clk 0:00:55]} 38. Kc6 {[%clk 0:01:50]}  Bxe5 {[%clk 0:00:50]} 39. fxe5 {[%clk 0:01:50]}  Kxe5 {[%clk 0:00:50]} 40. Kd7 {[%clk 0:01:50]}  Kf5 {[%clk 0:00:50]} 41. Ke7 {[%clk 0:01:49]} 1-0


[Site "https://www.chess.com"]

[Event "Titled Tuesday Blitz June 28 Early 2022"]
[White "Mosutha, Thuso"]
[Black "Cremisi, Daniel"]
[WhiteFideId "11302550"]
[BlackFideId "2089882"]
[WhiteElo "2028"]
[BlackElo "2172"]
[Result "1/2-1/2"]
[Round "07"]
[TimeControl "180+1"]
[Date "2022.06.28"]
[WhiteClock "0:00:31"]
[BlackClock "0:00:13"]

1. d4 {[%clk 0:03:00]}  d5 {[%clk 0:02:57]} 2. c4 {[%clk 0:03:00]}  e6 {[%clk 0:02:57]} 3. Nf3 {[%clk 0:03:00]}  c6 {[%clk 0:02:57]} 4. cxd5 {[%clk 0:02:59]}  exd5 {[%clk 0:02:56]} 5. g3 {[%clk 0:03:00]}  Nf6 {[%clk 0:02:56]} 6. Bg2 {[%clk 0:03:00]}  Bd6 {[%clk 0:02:57]} 7. O-O {[%clk 0:03:01]}  O-O {[%clk 0:02:57]} 8. Nc3 {[%clk 0:03:01]}  Re8 {[%clk 0:02:56]} 9. Re1 {[%clk 0:03:01]}  Bg4 {[%clk 0:02:53]} 10. h3 {[%clk 0:03:00]}  Bh5 {[%clk 0:02:52]} 11. Bg5 {[%clk 0:02:59]}  Nbd7 {[%clk 0:02:52]} 12. Qc2 {[%clk 0:02:58]}  Bg6 {[%clk 0:02:51]} 13. Qb3 {[%clk 0:02:57]}  Qb6 {[%clk 0:02:51]} 14. Qxb6 {[%clk 0:02:50]}  axb6 {[%clk 0:02:50]} 15. Nh4 {[%clk 0:02:49]}  Bb4 {[%clk 0:02:41]} 16. Nxg6 {[%clk 0:02:46]}  hxg6 {[%clk 0:02:41]} 17. e4 {[%clk 0:02:44]}  Bxc3 {[%clk 0:02:40]} 18. bxc3 {[%clk 0:02:44]}  dxe4 {[%clk 0:02:38]} 19. Re2 {[%clk 0:02:38]}  Ra3 {[%clk 0:02:32]} 20. c4 {[%clk 0:02:37]}  Rc3 {[%clk 0:02:20]} 21. Bxf6 {[%clk 0:02:31]}  Nxf6 {[%clk 0:02:20]} 22. Rb2 {[%clk 0:02:31]}  Rxc4 {[%clk 0:02:16]} 23. Rxb6 {[%clk 0:02:31]}  Re7 {[%clk 0:02:13]} 24. Rab1 {[%clk 0:02:28]}  Rxd4 {[%clk 0:02:13]} 25. Rxb7 {[%clk 0:02:28]}  Rxb7 {[%clk 0:02:09]} 26. Rxb7 {[%clk 0:02:29]}  Rd1+ {[%clk 0:02:10]} 27. Bf1 {[%clk 0:02:29]}  Nd5 {[%clk 0:02:10]} 28. Kg2 {[%clk 0:02:17]}  e3 {[%clk 0:02:09]} 29. Rb2 {[%clk 0:02:12]}  c5 {[%clk 0:02:07]} 30. Bc4 {[%clk 0:02:09]}  exf2 {[%clk 0:01:41]} 31. Kxf2 {[%clk 0:02:10]}  Nb4 {[%clk 0:01:38]} 32. a3 {[%clk 0:02:10]}  Nc6 {[%clk 0:01:38]} 33. Rb6 {[%clk 0:02:06]}  Ne5 {[%clk 0:01:36]} 34. Rb8+ {[%clk 0:02:04]}  Kh7 {[%clk 0:01:36]} 35. Be2 {[%clk 0:02:03]}  Rd6 {[%clk 0:01:34]} 36. Rc8 {[%clk 0:01:57]}  Nc6 {[%clk 0:01:21]} 37. Bf3 {[%clk 0:01:53]}  Nd4 {[%clk 0:01:21]} 38. Rxc5 {[%clk 0:01:51]}  Nxf3 {[%clk 0:01:21]} 39. Kxf3 {[%clk 0:01:51]}  Rd3+ {[%clk 0:01:22]} 40. Kg4 {[%clk 0:01:52]}  Rxa3 {[%clk 0:01:22]} 41. Rc7 {[%clk 0:01:51]}  f5+ {[%clk 0:01:22]} 42. Kf4 {[%clk 0:01:50]}  Kh6 {[%clk 0:01:21]} 43. h4 {[%clk 0:01:50]}  Ra4+ {[%clk 0:01:19]} 44. Kf3 {[%clk 0:01:50]}  g5 {[%clk 0:01:18]} 45. Rc6+ {[%clk 0:01:49]}  g6 {[%clk 0:01:17]} 46. hxg5+ {[%clk 0:01:45]}  Kxg5 {[%clk 0:01:18]} 47. Rc3 {[%clk 0:01:45]}  Ra6 {[%clk 0:01:16]} 48. Rb3 {[%clk 0:01:45]}  Kh5 {[%clk 0:01:16]} 49. Rc3 {[%clk 0:01:44]}  g5 {[%clk 0:01:14]} 50. Rb3 {[%clk 0:01:44]}  Ra4 {[%clk 0:01:13]} 51. Rb2 {[%clk 0:01:31]}  g4+ {[%clk 0:01:11]} 52. Kf2 {[%clk 0:01:31]}  Kg5 {[%clk 0:01:10]} 53. Kg2 {[%clk 0:01:31]}  Kf6 {[%clk 0:01:09]} 54. Re2 {[%clk 0:01:31]}  Re4 {[%clk 0:01:06]} 55. Rb2 {[%clk 0:01:31]}  Rd4 {[%clk 0:00:59]} 56. Rc2 {[%clk 0:01:31]}  Ke5 {[%clk 0:00:59]} 57. Rc5+ {[%clk 0:01:31]}  Rd5 {[%clk 0:00:59]} 58. Rc2 {[%clk 0:01:31]}  Ke4 {[%clk 0:00:55]} 59. Re2+ {[%clk 0:01:31]}  Kd3 {[%clk 0:00:56]} 60. Re8 {[%clk 0:01:28]}  Rd4 {[%clk 0:00:55]} 61. Kf2 {[%clk 0:01:27]}  Rd5 {[%clk 0:00:52]} 62. Re3+ {[%clk 0:01:21]}  Kd4 {[%clk 0:00:52]} 63. Re8 {[%clk 0:01:18]}  Ra5 {[%clk 0:00:51]} 64. Rd8+ {[%clk 0:01:17]}  Ke5 {[%clk 0:00:51]} 65. Rd2 {[%clk 0:01:14]}  Ra3 {[%clk 0:00:46]} 66. Re2+ {[%clk 0:01:12]}  Kd4 {[%clk 0:00:46]} 67. Rd2+ {[%clk 0:01:13]}  Rd3 {[%clk 0:00:46]} 68. Ra2 {[%clk 0:01:11]}  Ke4 {[%clk 0:00:47]} 69. Ra4+ {[%clk 0:01:11]}  Rd4 {[%clk 0:00:46]} 70. Ra2 {[%clk 0:01:11]}  Ke5 {[%clk 0:00:45]} 71. Ra5+ {[%clk 0:01:10]}  Rd5 {[%clk 0:00:44]} 72. Ra2 {[%clk 0:01:09]}  Kf6 {[%clk 0:00:44]} 73. Ke3 {[%clk 0:01:09]}  Rb5 {[%clk 0:00:40]} 74. Ra6+ {[%clk 0:00:59]}  Kg5 {[%clk 0:00:37]} 75. Ra2 {[%clk 0:00:55]}  Rb3+ {[%clk 0:00:32]} 76. Kf2 {[%clk 0:00:55]}  Rf3+ {[%clk 0:00:31]} 77. Kg2 {[%clk 0:00:56]}  Rb3 {[%clk 0:00:25]} 78. Rc2 {[%clk 0:00:54]}  Rb4 {[%clk 0:00:25]} 79. Kf2 {[%clk 0:00:54]}  Kf6 {[%clk 0:00:25]} 80. Ra2 {[%clk 0:00:53]}  Ke5 {[%clk 0:00:25]} 81. Re2+ {[%clk 0:00:53]}  Kf6 {[%clk 0:00:24]} 82. Ra2 {[%clk 0:00:53]}  Kg5 {[%clk 0:00:23]} 83. Rc2 {[%clk 0:00:52]}  Ra4 {[%clk 0:00:24]} 84. Rd2 {[%clk 0:00:52]}  Ra1 {[%clk 0:00:24]} 85. Rb2 {[%clk 0:00:52]}  Rh1 {[%clk 0:00:21]} 86. Kg2 {[%clk 0:00:51]}  Rh8 {[%clk 0:00:21]} 87. Rc2 {[%clk 0:00:49]}  Re8 {[%clk 0:00:20]} 88. Rb2 {[%clk 0:00:48]}  Re5 {[%clk 0:00:20]} 89. Kf2 {[%clk 0:00:48]}  Kf6 {[%clk 0:00:20]} 90. Rb6+ {[%clk 0:00:48]}  Re6 {[%clk 0:00:20]} 91. Rb5 {[%clk 0:00:49]}  Re5 {[%clk 0:00:17]} 92. Rb6+ {[%clk 0:00:47]}  Ke7 {[%clk 0:00:18]} 93. Rb2 {[%clk 0:00:44]}  Ke6 {[%clk 0:00:18]} 94. Rb6+ {[%clk 0:00:44]}  Kd5 {[%clk 0:00:18]} 95. Rb5+ {[%clk 0:00:44]}  Ke4 {[%clk 0:00:18]} 96. Rb4+ {[%clk 0:00:44]}  Kd3 {[%clk 0:00:18]} 97. Rb3+ {[%clk 0:00:43]}  Kc2 {[%clk 0:00:18]} 98. Rb8 {[%clk 0:00:43]}  Rd5 {[%clk 0:00:18]} 99. Ke3 {[%clk 0:00:34]}  Rd3+ {[%clk 0:00:17]} 100. Kf4 {[%clk 0:00:31]}  Rf3+ {[%clk 0:00:17]} 101. Kg5 {[%clk 0:00:31]}  Kd3 {[%clk 0:00:13]} 1/2-1/2


[Site "https://www.chess.com"]